Workbook

Sheet Enero
A1: Art. 7 de la Ley Orgánica de Transparencia y Acceso a la Información Pública - LOTAIP
A2: g) Información total sobre el presupuesto anual que administra la institución, especificando ingresos, gastos, financiamiento y resultados operativos de conformidad con los clasificadores presupuestales, así como liquidación del presupuesto, especificando destinatarios de entrega de recursos públicos
A3: Monto total del presupuesto anual 2015
A4: Tipo | B4: Ingresos | C4: Gastos | D4: Financiamiento | E4: Resultados operativos (% de gestión cumplida) | F4: Link para descargar la cédula presupuestaria mensual a nivel de tipo de gasto
A5: Corriente | B5: 7452741.35 | C5: 659510.14 | D5: Fondos Fiscales | E5: =C5/B5 -> 0.08849228881 | F5: cédula presupuestaria enero 2015
B6: 46776521 | C6: 3139365.98 | D6: Preasignaciónes | E6: =C6/B6 -> 0.06711414002
A7: Inversión | B7: 5264263.72 | C7: 55133.23 | D7: Fondos Fiscales | E7: =C7/B7 -> 0.01047311323
B8: 1936353.12 | C8: 0 | D8: Crédito Interno / Externo | E8: =C8/B8 -> 0
A9: Total | B9: =SUM(B5:B8) -> 61429879.19 | C9: =SUM(C5:C8) -> 3854009.35 | D9: =C9/B9 -> 0.06273835145
A10: Monto total del presupuesto anual liquidado (ejercicio fiscal 2014)
A11: Tipo | B11: Ingresos | C11: Gastos | D11: Financiamiento | E11: Resultados operativos (% de gestión cumplida) | F11: Link para descargar el presupuesto anual liquidado
A12: Corriente | B12: 4667649.72 | C12: 4616565.02 | D12: Fondos Fiscales | E12: =C12/B12 -> 0.9890555841 | F12: presupuesto anual liquidado 2014
B13: 36889049 | C13: 36833711.02 | D13: Preasignaciónes | E13: =C13/B13 -> 0.9984998805
A14: Inversión | B14: 8700559.26 | C14: 7441430.91 | D14: Fondos Fiscales | E14: =C14/B14 -> 0.8552819063
B15: 1742000 | C15: 1352730.02 | D15: Preasignaciónes | E15: =C15/B15 -> 0.776538473
B16: 0 | C16: 0 | D16: Crédito Interno / Externo | E16: =C16/B16 -> 
A17: Total | B17: =SUM(B12:B16) -> 51999257.98 | C17: =SUM(C12:C16) -> 50244436.97 | D17: =C17/B17 -> 0.9662529606
A18: Destinatario de entrega de recursos públicos | F18: Link para descargar el listado de destinatarios de recursos públicos
F19: Destinatarios recursos públicos mensual
A21: FECHA ACTUALIZACIÓN DE LA INFORMACIÓN: | E21: DD/MM/AAAA (31/01/2015)
A22: PERIODICIDAD DE ACTUALIZACIÓN DE LA INFORMACIÓN: | E22: MENSUAL
A23: UNIDAD POSEEDORA DE LA INFORMACIÓN - LITERAL g): | E23: DIRECCIÓN FINANIERA O A QUIEN LE CORRESPONDA
A24: RESPONSABLE DE LA UNIDAD POSEEDORA DE LA INFORMACIÓN DEL LITERAL g): | E24: NOMBRE DEL O LA TITULAR DE LA UNIDAD RESPONSABLE
A25: CORREO ELECTRÓNICO DEL O LA RESPONSABLE DE LA UNIDAD POSEEDORA DE LA INFORMACIÓN: | E25: correo electrónico del o la titular de la unidad responsable
A26: NÚMERO TELEFÓNICO DEL O LA RESPONSABLE DE LA UNIDAD POSEEDORA DE LA INFORMACIÓN: | E26: (02) 243-4461 EXTENSIÓN 215 (Número de teléfono y extensión)

Sheet Febrero
A1: Art. 7 de la Ley Orgánica de Transparencia y Acceso a la Información Pública - LOTAIP
A2: g) Información total sobre el presupuesto anual que administra la institución, especificando ingresos, gastos, financiamiento y resultados operativos de conformidad con los clasificadores presupuestales, así como liquidación del presupuesto, especificando destinatarios de entrega de recursos públicos
A3: Monto total del presupuesto anual 2015
A4: Tipo | B4: Ingresos | C4: Gastos | D4: Financiamiento | E4: Resultados operativos (% de gestión cumplida) | F4: Link para descargar la cédula presupuestaria mensual a nivel de tipo de gasto
A5: Corriente | B5: 7452741.35 | C5: 1395250.28 | D5: Fondos Fiscales | E5: =C5/B5 -> 0.1872130287 | F5: cédula presupuestaria enero 2015
B6: 46776521 | C6: 6821433.05 | D6: Preasignaciónes | E6: =C6/B6 -> 0.1458302778
A7: Inversión | B7: 5264263.72 | C7: 135190.27 | D7: Fondos Fiscales | E7: =C7/B7 -> 0.0256807556
B8: 1936353.12 | C8: 0 | D8: Crédito Interno / Externo | E8: =C8/B8 -> 0
A9: Total | B9: =SUM(B5:B8) -> 61429879.19 | C9: =SUM(C5:C8) -> 8351873.6 | D9: =C9/B9 -> 0.1359578386
A10: Monto total del presupuesto anual liquidado (ejercicio fiscal 2014)
A11: Tipo | B11: Ingresos | C11: Gastos | D11: Financiamiento | E11: Resultados operativos (% de gestión cumplida) | F11: Link para descargar el presupuesto anual liquidado
A12: Corriente | B12: 4667649.72 | C12: 4616565.02 | D12: Fondos Fiscales | E12: =C12/B12 -> 0.9890555841 | F12: presupuesto anual liquidado 2014
B13: 36889049 | C13: 36833711.02 | D13: Preasignaciónes | E13: =C13/B13 -> 0.9984998805
A14: Inversión | B14: 8700559.26 | C14: 7441430.91 | D14: Fondos Fiscales | E14: =C14/B14 -> 0.8552819063
B15: 1742000 | C15: 1352730.02 | D15: Preasignaciónes | E15: =C15/B15 -> 0.776538473
B16: 0 | C16: 0 | D16: Crédito Interno / Externo | E16: =C16/B16 -> 
A17: Total | B17: =SUM(B12:B16) -> 51999257.98 | C17: =SUM(C12:C16) -> 50244436.97 | D17: =C17/B17 -> 0.9662529606
A18: Destinatario de entrega de recursos públicos | F18: Link para descargar el listado de destinatarios de recursos públicos
F19: Destinatarios recursos públicos mensual
A21: FECHA ACTUALIZACIÓN DE LA INFORMACIÓN: | E21: DD/MM/AAAA (31/01/2015)
A22: PERIODICIDAD DE ACTUALIZACIÓN DE LA INFORMACIÓN: | E22: MENSUAL
A23: UNIDAD POSEEDORA DE LA INFORMACIÓN - LITERAL g): | E23: DIRECCIÓN FINANIERA O A QUIEN LE CORRESPONDA
A24: RESPONSABLE DE LA UNIDAD POSEEDORA DE LA INFORMACIÓN DEL LITERAL g): | E24: NOMBRE DEL O LA TITULAR DE LA UNIDAD RESPONSABLE
A25: CORREO ELECTRÓNICO DEL O LA RESPONSABLE DE LA UNIDAD POSEEDORA DE LA INFORMACIÓN: | E25: correo electrónico del o la titular de la unidad responsable
A26: NÚMERO TELEFÓNICO DEL O LA RESPONSABLE DE LA UNIDAD POSEEDORA DE LA INFORMACIÓN: | E26: (02) 243-4461 EXTENSIÓN 215 (Número de teléfono y extensión)

Sheet Marzo
A1: Art. 7 de la Ley Orgánica de Transparencia y Acceso a la Información Pública - LOTAIP
A2: g) Información total sobre el presupuesto anual que administra la institución, especificando ingresos, gastos, financiamiento y resultados operativos de conformidad con los clasificadores presupuestales, así como liquidación del presupuesto, especificando destinatarios de entrega de recursos públicos
A3: Monto total del presupuesto anual 2015
A4: Tipo | B4: Ingresos | C4: Gastos | D4: Financiamiento | E4: Resultados operativos (% de gestión cumplida) | F4: Link para descargar la cédula presupuestaria mensual a nivel de tipo de gasto
A5: Corriente | B5: 7452741.35 | C5: 1828561.81 | D5: Fondos Fiscales | E5: =C5/B5 -> 0.2453542561 | F5: cédula presupuestaria enero 2015
B6: 46776521 | C6: 10517755.97 | D6: Preasignaciónes | E6: =C6/B6 -> 0.2248511806
A7: Inversión | B7: 5264263.72 | C7: 519129.37 | D7: Fondos Fiscales | E7: =C7/B7 -> 0.09861386086
B8: 1936353.12 | C8: 0 | D8: Crédito Interno / Externo | E8: =C8/B8 -> 0
A9: Total | B9: =SUM(B5:B8) -> 61429879.19 | C9: =SUM(C5:C8) -> 12865447.15 | D9: =C9/B9 -> 0.2094330531
A10: Monto total del presupuesto anual liquidado (ejercicio fiscal 2014)
A11: Tipo | B11: Ingresos | C11: Gastos | D11: Financiamiento | E11: Resultados operativos (% de gestión cumplida) | F11: Link para descargar el presupuesto anual liquidado
A12: Corriente | B12: 4667649.72 | C12: 4616565.02 | D12: Fondos Fiscales | E12: =C12/B12 -> 0.9890555841 | F12: presupuesto anual liquidado 2014
B13: 36889049 | C13: 36833711.02 | D13: Preasignaciónes | E13: =C13/B13 -> 0.9984998805
A14: Inversión | B14: 8700559.26 | C14: 7441430.91 | D14: Fondos Fiscales | E14: =C14/B14 -> 0.8552819063
B15: 1742000 | C15: 1352730.02 | D15: Preasignaciónes | E15: =C15/B15 -> 0.776538473
B16: 0 | C16: 0 | D16: Crédito Interno / Externo | E16: =C16/B16 -> 
A17: Total | B17: =SUM(B12:B16) -> 51999257.98 | C17: =SUM(C12:C16) -> 50244436.97 | D17: =C17/B17 -> 0.9662529606
A18: Destinatario de entrega de recursos públicos | F18: Link para descargar el listado de destinatarios de recursos públicos
F19: Destinatarios recursos públicos mensual
A21: FECHA ACTUALIZACIÓN DE LA INFORMACIÓN: | E21: DD/MM/AAAA (31/01/2015)
A22: PERIODICIDAD DE ACTUALIZACIÓN DE LA INFORMACIÓN: | E22: MENSUAL
A23: UNIDAD POSEEDORA DE LA INFORMACIÓN - LITERAL g): | E23: DIRECCIÓN FINANIERA O A QUIEN LE CORRESPONDA
A24: RESPONSABLE DE LA UNIDAD POSEEDORA DE LA INFORMACIÓN DEL LITERAL g): | E24: NOMBRE DEL O LA TITULAR DE LA UNIDAD RESPONSABLE
A25: CORREO ELECTRÓNICO DEL O LA RESPONSABLE DE LA UNIDAD POSEEDORA DE LA INFORMACIÓN: | E25: correo electrónico del o la titular de la unidad responsable
A26: NÚMERO TELEFÓNICO DEL O LA RESPONSABLE DE LA UNIDAD POSEEDORA DE LA INFORMACIÓN: | E26: (02) 243-4461 EXTENSIÓN 215 (Número de teléfono y extensión)

Sheet Abril
A1: Art. 7 de la Ley Orgánica de Transparencia y Acceso a la Información Pública - LOTAIP
A2: g) Información total sobre el presupuesto anual que administra la institución, especificando ingresos, gastos, financiamiento y resultados operativos de conformidad con los clasificadores presupuestales, así como liquidación del presupuesto, especificando destinatarios de entrega de recursos públicos
A3: Monto total del presupuesto anual 2015
A4: Tipo | B4: Ingresos | C4: Gastos | D4: Financiamiento | E4: Resultados operativos (% de gestión cumplida) | F4: Link para descargar la cédula presupuestaria mensual a nivel de tipo de gasto
A5: Corriente | B5: 7452741.35 | C5: 2360276.18 | D5: Fondos Fiscales | E5: =C5/B5 -> 0.31669906 | F5: cédula presupuestaria enero 2015
B6: 46776521 | C6: 13583575.93 | D6: Preasignaciónes | E6: =C6/B6 -> 0.2903930356
A7: Inversión | B7: 5264263.72 | C7: 858548.08 | D7: Fondos Fiscales | E7: =C7/B7 -> 0.1630898689
B8: 1936353.12 | C8: 697189.64 | D8: Crédito Interno / Externo | E8: =C8/B8 -> 0.3600529432
A9: Total | B9: =SUM(B5:B8) -> 61429879.19 | C9: =SUM(C5:C8) -> 17499589.83 | D9: =C9/B9 -> 0.2848709791
A10: Monto total del presupuesto anual liquidado (ejercicio fiscal 2014)
A11: Tipo | B11: Ingresos | C11: Gastos | D11: Financiamiento | E11: Resultados operativos (% de gestión cumplida) | F11: Link para descargar el presupuesto anual liquidado
A12: Corriente | B12: 4667649.72 | C12: 4616565.02 | D12: Fondos Fiscales | E12: =C12/B12 -> 0.9890555841 | F12: presupuesto anual liquidado 2014
B13: 36889049 | C13: 36833711.02 | D13: Preasignaciónes | E13: =C13/B13 -> 0.9984998805
A14: Inversión | B14: 8700559.26 | C14: 7441430.91 | D14: Fondos Fiscales | E14: =C14/B14 -> 0.8552819063
B15: 1742000 | C15: 1352730.02 | D15: Preasignaciónes | E15: =C15/B15 -> 0.776538473
B16: 0 | C16: 0 | D16: Crédito Interno / Externo | E16: 0
A17: Total | B17: =SUM(B12:B16) -> 51999257.98 | C17: =SUM(C12:C16) -> 50244436.97 | D17: =C17/B17 -> 0.9662529606
A18: Destinatario de entrega de recursos públicos | F18: Link para descargar el listado de destinatarios de recursos públicos
F19: Destinatarios recursos públicos mensual
A21: FECHA ACTUALIZACIÓN DE LA INFORMACIÓN: | E21: DD/MM/AAAA (31/01/2015)
A22: PERIODICIDAD DE ACTUALIZACIÓN DE LA INFORMACIÓN: | E22: MENSUAL
A23: UNIDAD POSEEDORA DE LA INFORMACIÓN - LITERAL g): | E23: DIRECCIÓN FINANIERA O A QUIEN LE CORRESPONDA
A24: RESPONSABLE DE LA UNIDAD POSEEDORA DE LA INFORMACIÓN DEL LITERAL g): | E24: NOMBRE DEL O LA TITULAR DE LA UNIDAD RESPONSABLE
A25: CORREO ELECTRÓNICO DEL O LA RESPONSABLE DE LA UNIDAD POSEEDORA DE LA INFORMACIÓN: | E25: correo electrónico del o la titular de la unidad responsable
A26: NÚMERO TELEFÓNICO DEL O LA RESPONSABLE DE LA UNIDAD POSEEDORA DE LA INFORMACIÓN: | E26: (02) 243-4461 EXTENSIÓN 215 (Número de teléfono y extensión)

Sheet MAYO
A1: Art. 7 de la Ley Orgánica de Transparencia y Acceso a la Información Pública - LOTAIP
A2: g) Información total sobre el presupuesto anual que administra la institución, especificando ingresos, gastos, financiamiento y resultados operativos de conformidad con los clasificadores presupuestales, así como liquidación del presupuesto, especificando destinatarios de entrega de recursos públicos
A3: Monto total del presupuesto anual 2015
A4: Tipo | B4: Ingresos | C4: Gastos | D4: Financiamiento | E4: Resultados operativos (% de gestión cumplida) | F4: Link para descargar la cédula presupuestaria mensual a nivel de tipo de gasto
A5: Corriente | B5: 7452741.35 | C5: 2719403.98 | D5: Fondos Fiscales | E5: =C5/B5 -> 0.3648864025 | F5: cédula presupuestaria enero 2015
B6: 46776521 | C6: 16554293.77 | D6: Preasignaciónes | E6: =C6/B6 -> 0.3539017741
A7: Inversión | B7: 5264263.72 | C7: 1096072.67 | D7: Fondos Fiscales | E7: =C7/B7 -> 0.208210061
B8: 1936353.12 | C8: 697189.64 | D8: Crédito Interno / Externo | E8: =C8/B8 -> 0.3600529432
A9: Total | B9: =SUM(B5:B8) -> 61429879.19 | C9: =SUM(C5:C8) -> 21066960.06 | D9: =C9/B9 -> 0.3429432116
A10: Monto total del presupuesto anual liquidado (ejercicio fiscal 2014)
A11: Tipo | B11: Ingresos | C11: Gastos | D11: Financiamiento | E11: Resultados operativos (% de gestión cumplida) | F11: Link para descargar el presupuesto anual liquidado
A12: Corriente | B12: 4667649.72 | C12: 4616565.02 | D12: Fondos Fiscales | E12: =C12/B12 -> 0.9890555841 | F12: presupuesto anual liquidado 2014
B13: 36889049 | C13: 36833711.02 | D13: Preasignaciónes | E13: =C13/B13 -> 0.9984998805
A14: Inversión | B14: 8700559.26 | C14: 7441430.91 | D14: Fondos Fiscales | E14: =C14/B14 -> 0.8552819063
B15: 1742000 | C15: 1352730.02 | D15: Preasignaciónes | E15: =C15/B15 -> 0.776538473
B16: 0 | C16: 0 | D16: Crédito Interno / Externo | E16: 0
A17: Total | B17: =SUM(B12:B16) -> 51999257.98 | C17: =SUM(C12:C16) -> 50244436.97 | D17: =C17/B17 -> 0.9662529606
A18: Destinatario de entrega de recursos públicos | F18: Link para descargar el listado de destinatarios de recursos públicos
F19: Destinatarios recursos públicos mensual
A21: FECHA ACTUALIZACIÓN DE LA INFORMACIÓN: | E21: DD/MM/AAAA (31/01/2015)
A22: PERIODICIDAD DE ACTUALIZACIÓN DE LA INFORMACIÓN: | E22: MENSUAL
A23: UNIDAD POSEEDORA DE LA INFORMACIÓN - LITERAL g): | E23: DIRECCIÓN FINANIERA O A QUIEN LE CORRESPONDA
A24: RESPONSABLE DE LA UNIDAD POSEEDORA DE LA INFORMACIÓN DEL LITERAL g): | E24: NOMBRE DEL O LA TITULAR DE LA UNIDAD RESPONSABLE
A25: CORREO ELECTRÓNICO DEL O LA RESPONSABLE DE LA UNIDAD POSEEDORA DE LA INFORMACIÓN: | E25: correo electrónico del o la titular de la unidad responsable
A26: NÚMERO TELEFÓNICO DEL O LA RESPONSABLE DE LA UNIDAD POSEEDORA DE LA INFORMACIÓN: | E26: (02) 243-4461 EXTENSIÓN 215 (Número de teléfono y extensión)

Sheet JUNIO
A1: Art. 7 de la Ley Orgánica de Transparencia y Acceso a la Información Pública - LOTAIP
A2: g) Información total sobre el presupuesto anual que administra la institución, especificando ingresos, gastos, financiamiento y resultados operativos de conformidad con los clasificadores presupuestales, así como liquidación del presupuesto, especificando destinatarios de entrega de recursos públicos
A3: Monto total del presupuesto anual 2015
A4: Tipo | B4: Ingresos | C4: Gastos | D4: Financiamiento | E4: Resultados operativos (% de gestión cumplida) | F4: Link para descargar la cédula presupuestaria mensual a nivel de tipo de gasto
A5: Corriente | B5: 8884096 | C5: 0 | D5: Fondos Fiscales | E5: =C5/B5 -> 0 | F5: cédula presupuestaria JUNIO 2015
B6: 46776521 | C6: 46036483.6 | D6: Preasignaciónes | E6: =C6/B6 -> 0.984179298
A7: Inversión | B7: 1346103 | C7: 8333829.83 | D7: Fondos Fiscales | E7: =C7/B7 -> 6.191078862
B8: 1936353.12 | C8: 560000 | D8: Crédito Interno / Externo | E8: =C8/B8 -> 0.2892034486
A9: Total | C9: 7200
A10: Monto total del presupuesto anual liquidado (ejercicio fiscal 2014)
A11: Tipo | B11: Ingresos | C11: Gastos | D11: Financiamiento | E11: Resultados operativos (% de gestión cumplida) | F11: Link para descargar el presupuesto anual liquidado
A12: Corriente | B12: 4,483,699,77 | C12: 4,007,733,99 | D12: Fondos Fiscales | E12: =C12/B12 ->  | F12: presupuesto JUNIO liquidado 2015
B13: 20,894,130,26 | C13: 19,499,415,80 | D13: Preasignaciónes | E13: =C13/B13 -> 
A14: Inversión | B14: 1,346,103,00 | C14: 2,031,867,99 | D14: Fondos Fiscales | E14: =C14/B14 -> 
D15: Preasignaciónes | E15: =C15/B15 -> 
B16: 1,936,353,12 | C16: 231,792,76 | D16: Crédito Interno / Externo | E16: 0
A17: Total | B17: =SUM(B12:B16) -> 0 | C17: =SUM(C12:C16) -> 0 | D17: =C17/B17 -> 
A18: Destinatario de entrega de recursos públicos | F18: Link para descargar el listado de destinatarios de recursos públicos
F19: Destinatarios recursos públicos mensual
A21: FECHA ACTUALIZACIÓN DE LA INFORMACIÓN: | E21: 2015-06-30
A22: PERIODICIDAD DE ACTUALIZACIÓN DE LA INFORMACIÓN: | E22: MENSUAL
A23: UNIDAD POSEEDORA DE LA INFORMACIÓN - LITERAL g): | E23: UNIVERSIDAD LAQICA ELOY ALFARO DE MANABI
A24: RESPONSABLE DE LA UNIDAD POSEEDORA DE LA INFORMACIÓN DEL LITERAL g): | E24: DRA. AMALIA REYES MOREIRA
A25: CORREO ELECTRÓNICO DEL O LA RESPONSABLE DE LA UNIDAD POSEEDORA DE LA INFORMACIÓN: | E25: correo electrónico del o la titular de la unidad responsable
A26: NÚMERO TELEFÓNICO DEL O LA RESPONSABLE DE LA UNIDAD POSEEDORA DE LA INFORMACIÓN: | E26: (02) 243-4461 EXTENSIÓN 215 (Número de teléfono y extensión)

Sheet JULIO
A1: Art. 7 de la Ley Orgánica de Transparencia y Acceso a la Información Pública - LOTAIP
A2: g) Información total sobre el presupuesto anual que administra la institución, especificando ingresos, gastos, financiamiento y resultados operativos de conformidad con los clasificadores presupuestales, así como liquidación del presupuesto, especificando destinatarios de entrega de recursos públicos
A3: Monto total del presupuesto anual 2015
A4: Tipo | B4: Ingresos | C4: Gastos | D4: Financiamiento | E4: Resultados operativos (% de gestión cumplida) | F4: Link para descargar la cédula presupuestaria mensual a nivel de tipo de gasto
A5: Corriente | B5: 7452741.35 | C5: 3712110.59 | D5: Fondos Fiscales | E5: =C5/B5 -> 0.4980865987 | F5: cédula presupuestaria julio 2015
B6: 46776521 | C6: 23718471.79 | D6: Preasignaciónes | E6: =C6/B6 -> 0.5070593384
A7: Inversión | B7: 5264263.72 | C7: 1376889.35 | D7: Fondos Fiscales | E7: =C7/B7 -> 0.2615540222
B8: 1936353.12 | C8: 1055985.14 | D8: Crédito Interno / Externo | E8: =C8/B8 -> 0.5453474003
A9: Total | B9: =SUM(B5:B8) -> 61429879.19 | C9: =SUM(C5:C8) -> 29863456.87 | D9: =C9/B9 -> 0.4861389484
A10: Monto total del presupuesto anual liquidado (ejercicio fiscal 2014)
A11: Tipo | B11: Ingresos | C11: Gastos | D11: Financiamiento | E11: Resultados operativos (% de gestión cumplida) | F11: Link para descargar el presupuesto anual liquidado
A12: Corriente | B12: 4667649.72 | C12: 4616565.02 | D12: Fondos Fiscales | E12: =C12/B12 -> 0.9890555841 | F12: presupuesto anual liquidado 2014
B13: 36889049 | C13: 36833711.02 | D13: Preasignaciónes | E13: =C13/B13 -> 0.9984998805
A14: Inversión | B14: 8700559.26 | C14: 7441430.91 | D14: Fondos Fiscales | E14: =C14/B14 -> 0.8552819063
B15: 1742000 | C15: 1352730.02 | D15: Preasignaciónes | E15: =C15/B15 -> 0.776538473
B16: 0 | C16: 0 | D16: Crédito Interno / Externo | E16: 0
A17: Total | B17: =SUM(B12:B16) -> 51999257.98 | C17: =SUM(C12:C16) -> 50244436.97 | D17: =C17/B17 -> 0.9662529606
A18: Destinatario de entrega de recursos públicos | F18: Link para descargar el listado de destinatarios de recursos públicos
F19: Destinatarios recursos públicos mensual
A21: FECHA ACTUALIZACIÓN DE LA INFORMACIÓN: | E21: DD/MM/AAAA (31/01/2015)
A22: PERIODICIDAD DE ACTUALIZACIÓN DE LA INFORMACIÓN: | E22: MENSUAL
A23: UNIDAD POSEEDORA DE LA INFORMACIÓN - LITERAL g): | E23: DIRECCIÓN FINANIERA O A QUIEN LE CORRESPONDA
A24: RESPONSABLE DE LA UNIDAD POSEEDORA DE LA INFORMACIÓN DEL LITERAL g): | E24: NOMBRE DEL O LA TITULAR DE LA UNIDAD RESPONSABLE
A25: CORREO ELECTRÓNICO DEL O LA RESPONSABLE DE LA UNIDAD POSEEDORA DE LA INFORMACIÓN: | E25: correo electrónico del o la titular de la unidad responsable
A26: NÚMERO TELEFÓNICO DEL O LA RESPONSABLE DE LA UNIDAD POSEEDORA DE LA INFORMACIÓN: | E26: (02) 243-4461 EXTENSIÓN 215 (Número de teléfono y extensión)

Sheet AGTO
A1: Art. 7 de la Ley Orgánica de Transparencia y Acceso a la Información Pública - LOTAIP
A2: g) Información total sobre el presupuesto anual que administra la institución, especificando ingresos, gastos, financiamiento y resultados operativos de conformidad con los clasificadores presupuestales, así como liquidación del presupuesto, especificando destinatarios de entrega de recursos públicos
A3: Monto total del presupuesto anual 2015
A4: Tipo | B4: Ingresos | C4: Gastos | D4: Financiamiento | E4: Resultados operativos (% de gestión cumplida) | F4: Link para descargar la cédula presupuestaria mensual a nivel de tipo de gasto
A5: Corriente | B5: 7452741.35 | C5: 3985218.87 | D5: Fondos Fiscales | E5: =C5/B5 -> 0.534731944 | F5: cédula presupuestaria julio 2015
B6: 46776521 | C6: 27457415.37 | D6: Preasignaciónes | E6: =C6/B6 -> 0.5869913962
A7: Inversión | B7: 5264263.72 | C7: 1823494.8 | D7: Fondos Fiscales | E7: =C7/B7 -> 0.3463912328
B8: 1936353.12 | C8: 1055985.14 | D8: Crédito Interno / Externo | E8: =C8/B8 -> 0.5453474003
A9: Total | B9: =SUM(B5:B8) -> 61429879.19 | C9: =SUM(C5:C8) -> 34322114.18 | D9: =C9/B9 -> 0.5587201966
A10: Monto total del presupuesto anual liquidado (ejercicio fiscal 2014)
A11: Tipo | B11: Ingresos | C11: Gastos | D11: Financiamiento | E11: Resultados operativos (% de gestión cumplida) | F11: Link para descargar el presupuesto anual liquidado
A12: Corriente | B12: 4667649.72 | C12: 4616565.02 | D12: Fondos Fiscales | E12: =C12/B12 -> 0.9890555841 | F12: presupuesto anual liquidado 2014
B13: 36889049 | C13: 36833711.02 | D13: Preasignaciónes | E13: =C13/B13 -> 0.9984998805
A14: Inversión | B14: 8700559.26 | C14: 7441430.91 | D14: Fondos Fiscales | E14: =C14/B14 -> 0.8552819063
B15: 1742000 | C15: 1352730.02 | D15: Preasignaciónes | E15: =C15/B15 -> 0.776538473
B16: 0 | C16: 0 | D16: Crédito Interno / Externo | E16: 0
A17: Total | B17: =SUM(B12:B16) -> 51999257.98 | C17: =SUM(C12:C16) -> 50244436.97 | D17: =C17/B17 -> 0.9662529606
A18: Destinatario de entrega de recursos públicos | F18: Link para descargar el listado de destinatarios de recursos públicos
F19: Destinatarios recursos públicos mensual
A21: FECHA ACTUALIZACIÓN DE LA INFORMACIÓN: | E21: DD/MM/AAAA (31/08/2015)
A22: PERIODICIDAD DE ACTUALIZACIÓN DE LA INFORMACIÓN: | E22: AGOSTO
A23: UNIDAD POSEEDORA DE LA INFORMACIÓN - LITERAL g): | E23: DIRECCIÓN FINANIERA
A24: RESPONSABLE DE LA UNIDAD POSEEDORA DE LA INFORMACIÓN DEL LITERAL g): | E24: ING. DAVID FARFAN
A25: CORREO ELECTRÓNICO DEL O LA RESPONSABLE DE LA UNIDAD POSEEDORA DE LA INFORMACIÓN: | E25: correo electrónico del o la titular de la unidad responsable
A26: NÚMERO TELEFÓNICO DEL O LA RESPONSABLE DE LA UNIDAD POSEEDORA DE LA INFORMACIÓN: | E26: (02) 622-744-EXTENSIÓN-252 (david.farfan@uleam.edu.ec)

Sheet OCTUBRE
A1: Art. 7 de la Ley Orgánica de Transparencia y Acceso a la Información Pública - LOTAIP
A2: g) Información total sobre el presupuesto anual que administra la institución, especificando ingresos, gastos, financiamiento y resultados operativos de conformidad con los clasificadores presupuestales, así como liquidación del presupuesto, especificando destinatarios de entrega de recursos públicos
A3: Monto total del presupuesto anual 2015
A4: Tipo | B4: Ingresos | C4: Gastos | D4: Financiamiento | E4: Resultados operativos (% de gestión cumplida) | F4: Link para descargar la cédula presupuestaria mensual a nivel de tipo de gasto
A5: Corriente | B5: 7452741.35 | C5: 4426679.38 | D5: Fondos Fiscales | E5: =C5/B5 -> 0.5939665919 | F5: cédula presupuestaria julio 2015
B6: 46776521 | C6: 35667663.64 | D6: Preasignaciónes | E6: =C6/B6 -> 0.7625121082
A7: Inversión | B7: 5264263.72 | C7: 3069280.73 | D7: Fondos Fiscales | E7: =C7/B7 -> 0.5830408379
B8: 1936353.12 | C8: 0 | D8: Crédito Interno / Externo | E8: =C8/B8 -> 0
A9: Total | B9: =SUM(B5:B8) -> 61429879.19 | C9: =SUM(C5:C8) -> 43163623.75 | D9: =C9/B9 -> 0.7026486837
A10: Monto total del presupuesto anual liquidado (ejercicio fiscal 2014)
A11: Tipo | B11: Ingresos | C11: Gastos | D11: Financiamiento | E11: Resultados operativos (% de gestión cumplida) | F11: Link para descargar el presupuesto anual liquidado
A12: Corriente | B12: 4667649.72 | C12: 4616565.02 | D12: Fondos Fiscales | E12: =C12/B12 -> 0.9890555841 | F12: presupuesto anual liquidado 2014
B13: 36889049 | C13: 36833711.02 | D13: Preasignaciónes | E13: =C13/B13 -> 0.9984998805
A14: Inversión | B14: 8700559.26 | C14: 7441430.91 | D14: Fondos Fiscales | E14: =C14/B14 -> 0.8552819063
B15: 1742000 | C15: 1352730.02 | D15: Preasignaciónes | E15: =C15/B15 -> 0.776538473
B16: 0 | C16: 0 | D16: Crédito Interno / Externo | E16: 0
A17: Total | B17: =SUM(B12:B16) -> 51999257.98 | C17: =SUM(C12:C16) -> 50244436.97 | D17: =C17/B17 -> 0.9662529606
A18: Destinatario de entrega de recursos públicos | F18: Link para descargar el listado de destinatarios de recursos públicos
F19: Destinatarios recursos públicos mensual
A21: FECHA ACTUALIZACIÓN DE LA INFORMACIÓN: | E21: DD/MM/AAAA (31/08/2015)
A22: PERIODICIDAD DE ACTUALIZACIÓN DE LA INFORMACIÓN: | E22: AGOSTO
A23: UNIDAD POSEEDORA DE LA INFORMACIÓN - LITERAL g): | E23: DIRECCIÓN FINANIERA
A24: RESPONSABLE DE LA UNIDAD POSEEDORA DE LA INFORMACIÓN DEL LITERAL g): | E24: ING. DAVID FARFAN
A25: CORREO ELECTRÓNICO DEL O LA RESPONSABLE DE LA UNIDAD POSEEDORA DE LA INFORMACIÓN: | E25: correo electrónico del o la titular de la unidad responsable
A26: NÚMERO TELEFÓNICO DEL O LA RESPONSABLE DE LA UNIDAD POSEEDORA DE LA INFORMACIÓN: | E26: (02) 622-744-EXTENSIÓN-252 (david.farfan@uleam.edu.ec)

Sheet 01-17
A1: g) Información total sobre el presupuesto anual que administra la institución, especificando ingresos, gastos, financiamiento y resultados operativos de conformidad con los clasificadores presupuestales, así como liquidación del presupuesto, especificando destinatarios de entrega de recursos públicos
A2: Monto total del presupuesto anual 2016
A3: Tipo | B3: Ingresos | C3: Gastos | D3: Financiamiento | E3: Resultados operativos (% de gestión cumplida) | F3: Link para descargar la cédula presupuestaria mensual a nivel de tipo de gasto
A4: Corriente | B4: 8819525 | C4: 35855.11 | D4: Fondos Fiscales | E4: =C4/B4 -> 0.004065424158 | F4: ENERO-2017
B5: 45533178 | C5: 3668155.36 | D5: Preasignaciónes | E5: =C5/B5 -> 0.08056005579
A6: Inversión | B6: 1477848 | C6: 0 | D6: Fondos Fiscales | E6: =C6/B6 -> 0
B7: 0 | C7: 0 | D7: Crédito Interno / Externo | E7: 0
A8: Total | B8: =SUM(B4:B7) -> 55830551 | C8: =SUM(C4:C7) -> 3704010.47 | D8: =C8/B8 -> 0.06634379213
A9: Monto total del presupuesto anual liquidado (ejercicio fiscal 2015)
A10: Tipo | B10: Ingresos | C10: Gastos | D10: Financiamiento | E10: Resultados operativos (% de gestión cumplida) | F10: Link para descargar el presupuesto anual liquidado
A11: Corriente | B11: 8659869.57 | C11: 7239173.35 | D11: Fondos Fiscales | E11: =C11/B11 -> 0.8359448478 | F11: presupuesto anual liquidado 2016
B12: 45533178 | C12: 45359549.56 | D12: Preasignaciónes | E12: =C12/B12 -> 0.9961867709
A13: Inversión | B13: 6249304.71 | C13: 5090753.26 | D13: Fondos Fiscales | E13: =C13/B13 -> 0.8146111442
B14: 0 | C14: 0 | D14: Crédito Interno / Externo | E14: 0
A15: Total | B15: =SUM(B11:B14) -> 60442352.28 | C15: =SUM(C11:C14) -> 57689476.17 | D15: =C15/B15 -> 0.9544545173
A16: Destinatario de entrega de recursos públicos | F16: Link para descargar el listado de destinatarios de recursos públicos
F17: Destinatarios recursos públicos mensual
A19: FECHA ACTUALIZACIÓN DE LA INFORMACIÓN: | E19: DD/MM/AAAA (07/02/2017)
A20: PERIODICIDAD DE ACTUALIZACIÓN DE LA INFORMACIÓN: | E20: ENERO.2017
A21: UNIDAD POSEEDORA DE LA INFORMACIÓN - LITERAL g): | E21: DIRECCIÓN FINANIERA
A22: RESPONSABLE DE LA UNIDAD POSEEDORA DE LA INFORMACIÓN DEL LITERAL g): | E22: ING. SANDRA REYES ALAVA
A23: CORREO ELECTRÓNICO DEL O LA RESPONSABLE DE LA UNIDAD POSEEDORA DE LA INFORMACIÓN: | E23: sandra.reyes@uleam.edu.ec
A24: NÚMERO TELEFÓNICO DEL O LA RESPONSABLE DE LA UNIDAD POSEEDORA DE LA INFORMACIÓN: | E24: (02) 622-744-EXTENSIÓN-252

Sheet 02-17
B1: g) Información total sobre el presupuesto anual que administra la institución, especificando ingresos, gastos, financiamiento y resultados operativos de conformidad con los clasificadores presupuestales, así como liquidación del presupuesto, especificando destinatarios de entrega de recursos públicos
B2: Monto total del presupuesto anual 2016
B3: Tipo | C3: Ingresos | D3: Gastos | E3: Financiamiento | F3: Resultados operativos (% de gestión cumplida) | G3: Link para descargar la cédula presupuestaria mensual a nivel de tipo de gasto
B4: Corriente | C4: 8819525 | D4: 158446.38 | E4: Fondos Fiscales | F4: =D4/C4 -> 0.0179654097 | G4: FEBRERO-2017
C5: 45533178 | D5: 7577679.42 | E5: Preasignaciónes | F5: =D5/C5 -> 0.1664210528
B6: Inversión | C6: 1477848 | D6: 0 | E6: Fondos Fiscales | F6: =D6/C6 -> 0
C7: 0 | D7: 0 | E7: Crédito Interno / Externo | F7: 0
B8: Total | C8: =SUM(C4:C7) -> 55830551 | D8: =SUM(D4:D7) -> 7736125.8 | E8: =D8/C8 -> 0.1385643821
B9: Monto total del presupuesto anual liquidado (ejercicio fiscal 2016)
B10: Tipo | C10: Ingresos | D10: Gastos | E10: Financiamiento | F10: Resultados operativos (% de gestión cumplida) | G10: Link para descargar el presupuesto anual liquidado
B11: Corriente | C11: 8659869.57 | D11: 7239173.35 | E11: Fondos Fiscales | F11: =D11/C11 -> 0.8359448478 | G11: presupuesto anual liquidado 2016
C12: 45533178 | D12: 45359549.56 | E12: Preasignaciónes | F12: =D12/C12 -> 0.9961867709
B13: Inversión | C13: 6249304.71 | D13: 5090753.26 | E13: Fondos Fiscales | F13: =D13/C13 -> 0.8146111442
C14: 0 | D14: 0 | E14: Crédito Interno / Externo | F14: 0
B15: Total | C15: =SUM(C11:C14) -> 60442352.28 | D15: =SUM(D11:D14) -> 57689476.17 | E15: =D15/C15 -> 0.9544545173
B16: Destinatario de entrega de recursos públicos | G16: Link para descargar el listado de destinatarios de recursos públicos
G17: Destinatarios recursos públicos mensual
B19: FECHA ACTUALIZACIÓN DE LA INFORMACIÓN: | F19: DD/MM/AAAA (06/03/2017)
B20: PERIODICIDAD DE ACTUALIZACIÓN DE LA INFORMACIÓN: | F20: FEBRERO.2017
B21: UNIDAD POSEEDORA DE LA INFORMACIÓN - LITERAL g): | F21: DIRECCIÓN FINANIERA
B22: RESPONSABLE DE LA UNIDAD POSEEDORA DE LA INFORMACIÓN DEL LITERAL g): | F22: ING. SANDRA REYES ALAVA
B23: CORREO ELECTRÓNICO DEL O LA RESPONSABLE DE LA UNIDAD POSEEDORA DE LA INFORMACIÓN: | F23: sandra.reyes@uleam.edu.ec
B24: NÚMERO TELEFÓNICO DEL O LA RESPONSABLE DE LA UNIDAD POSEEDORA DE LA INFORMACIÓN: | F24: (02) 622-744-EXTENSIÓN-252

Sheet 03-17
A2: g) Información total sobre el presupuesto anual que administra la institución, especificando ingresos, gastos, financiamiento y resultados operativos de conformidad con los clasificadores presupuestales, así como liquidación del presupuesto, especificando destinatarios de entrega de recursos públicos
A3: Monto total del presupuesto anual 2017
A4: Tipo | B4: Ingresos | C4: Gastos | D4: Financiamiento | E4: Resultados operativos (% de gestión cumplida) | F4: Link para descargar la cédula presupuestaria mensual a nivel de tipo de gasto
A5: Corriente | B5: 8819525 | C5: 380028.78 | D5: Fondos Fiscales | E5: =C5/B5 -> 0.04308948384 | F5: MARZO -2017
B6: 45533178 | C6: 11975117.36 | D6: Preasignaciónes | E6: =C6/B6 -> 0.2629976181
A7: Inversión | B7: 1477848 | C7: 13308.36 | D7: Fondos Fiscales | E7: =C7/B7 -> 0.009005229225
B8: 0 | C8: 0 | D8: Crédito Interno / Externo | E8: 0
A9: Total | B9: =SUM(B5:B8) -> 55830551 | C9: =SUM(C5:C8) -> 12368454.5 | D9: =C9/B9 -> 0.221535598
A10: Monto total del presupuesto anual liquidado (ejercicio fiscal 2016)
A11: Tipo | B11: Ingresos | C11: Gastos | D11: Financiamiento | E11: Resultados operativos (% de gestión cumplida) | F11: Link para descargar el presupuesto anual liquidado
A12: Corriente | B12: 8659869.57 | C12: 7239173.35 | D12: Fondos Fiscales | E12: =C12/B12 -> 0.8359448478 | F12: presupuesto anual liquidado 2016
B13: 45533178 | C13: 45359549.56 | D13: Preasignaciónes | E13: =C13/B13 -> 0.9961867709
A14: Inversión | B14: 6249304.71 | C14: 5090753.26 | D14: Fondos Fiscales | E14: =C14/B14 -> 0.8146111442
B15: 0 | C15: 0 | D15: Crédito Interno / Externo | E15: 0
A16: Total | B16: =SUM(B12:B15) -> 60442352.28 | C16: =SUM(C12:C15) -> 57689476.17 | D16: =C16/B16 -> 0.9544545173
A17: Destinatario de entrega de recursos públicos | F17: Link para descargar el listado de destinatarios de recursos públicos
F18: Destinatarios recursos públicos mensual
A20: FECHA ACTUALIZACIÓN DE LA INFORMACIÓN: | E20: DD/MM/AAAA (25/04/2017)
A21: PERIODICIDAD DE ACTUALIZACIÓN DE LA INFORMACIÓN: | E21: MARZO.2017
A22: UNIDAD POSEEDORA DE LA INFORMACIÓN - LITERAL g): | E22: DIRECCIÓN FINANIERA
A23: RESPONSABLE DE LA UNIDAD POSEEDORA DE LA INFORMACIÓN DEL LITERAL g): | E23: ING. SANDRA REYES ALAVA
A24: CORREO ELECTRÓNICO DEL O LA RESPONSABLE DE LA UNIDAD POSEEDORA DE LA INFORMACIÓN: | E24: sandra.reyes@uleam.edu.ec
A25: NÚMERO TELEFÓNICO DEL O LA RESPONSABLE DE LA UNIDAD POSEEDORA DE LA INFORMACIÓN: | E25: (02) 622-744-EXTENSIÓN-252

Sheet 04-17
A2: g) Información total sobre el presupuesto anual que administra la institución, especificando ingresos, gastos, financiamiento y resultados operativos de conformidad con los clasificadores presupuestales, así como liquidación del presupuesto, especificando destinatarios de entrega de recursos públicos
A3: Monto total del presupuesto anual 2017
A4: Tipo | B4: Ingresos | C4: Gastos | D4: Financiamiento | E4: Resultados operativos (% de gestión cumplida) | F4: Link para descargar la cédula presupuestaria mensual a nivel de tipo de gasto
A5: Corriente | B5: 8819525 | C5: 872646.6 | D5: Fondos Fiscales | E5: =C5/B5 -> 0.09894485247 | F5: ABRIL -2017
B6: 45533178 | C6: 15326948.97 | D6: Preasignaciónes | E6: =C6/B6 -> 0.3366105693
A7: Inversión | B7: 3237384.98 | C7: 13308.36 | D7: Fondos Fiscales | E7: =C7/B7 -> 0.004110836395
B8: 0 | C8: 0 | D8: Crédito Interno / Externo | E8: 0
A9: Total | B9: =SUM(B5:B8) -> 57590087.98 | C9: =SUM(C5:C8) -> 16212903.93 | D9: =C9/B9 -> 0.281522472
A10: Monto total del presupuesto anual liquidado (ejercicio fiscal 2016)
A11: Tipo | B11: Ingresos | C11: Gastos | D11: Financiamiento | E11: Resultados operativos (% de gestión cumplida) | F11: Link para descargar el presupuesto anual liquidado
A12: Corriente | B12: 8659869.57 | C12: 7239173.35 | D12: Fondos Fiscales | E12: =C12/B12 -> 0.8359448478 | F12: presupuesto anual liquidado 2016
B13: 45533178 | C13: 45359549.56 | D13: Preasignaciónes | E13: =C13/B13 -> 0.9961867709
A14: Inversión | B14: 6249304.71 | C14: 5090753.26 | D14: Fondos Fiscales | E14: =C14/B14 -> 0.8146111442
B15: 0 | C15: 0 | D15: Crédito Interno / Externo | E15: 0
A16: Total | B16: =SUM(B12:B15) -> 60442352.28 | C16: =SUM(C12:C15) -> 57689476.17 | D16: =C16/B16 -> 0.9544545173
A17: Destinatario de entrega de recursos públicos | F17: Link para descargar el listado de destinatarios de recursos públicos
F18: Destinatarios recursos públicos mensual
A20: FECHA ACTUALIZACIÓN DE LA INFORMACIÓN: | E20: DD/MM/AAAA (08/05/2017)
A21: PERIODICIDAD DE ACTUALIZACIÓN DE LA INFORMACIÓN: | E21: ABRIL.2017
A22: UNIDAD POSEEDORA DE LA INFORMACIÓN - LITERAL g): | E22: DIRECCIÓN FINANIERA
A23: RESPONSABLE DE LA UNIDAD POSEEDORA DE LA INFORMACIÓN DEL LITERAL g): | E23: ING. SANDRA REYES ALAVA
A24: CORREO ELECTRÓNICO DEL O LA RESPONSABLE DE LA UNIDAD POSEEDORA DE LA INFORMACIÓN: | E24: sandra.reyes@uleam.edu.ec
A25: NÚMERO TELEFÓNICO DEL O LA RESPONSABLE DE LA UNIDAD POSEEDORA DE LA INFORMACIÓN: | E25: (02) 622-744-EXTENSIÓN-252

Sheet 05-17
A2: g) Información total sobre el presupuesto anual que administra la institución, especificando ingresos, gastos, financiamiento y resultados operativos de conformidad con los clasificadores presupuestales, así como liquidación del presupuesto, especificando destinatarios de entrega de recursos públicos
A3: Monto total del presupuesto anual 2017
A4: Tipo | B4: Ingresos | C4: Gastos | D4: Financiamiento | E4: Resultados operativos (% de gestión cumplida) | F4: Link para descargar la cédula presupuestaria mensual a nivel de tipo de gasto
A5: Corriente | B5: 8819525 | C5: 1612824.17 | D5: Fondos Fiscales | E5: =C5/B5 -> 0.1828697316 | F5: MAYO -2017
B6: 45533178 | C6: 18785995.51 | D6: Preasignaciónes | E6: =C6/B6 -> 0.4125781756
A7: Inversión | B7: 3253069.98 | C7: 13308.36 | D7: Fondos Fiscales | E7: =C7/B7 -> 0.004091015589
B8: 0 | C8: 0 | D8: Crédito Interno / Externo | E8: 0
A9: Total | B9: =SUM(B5:B8) -> 57605772.98 | C9: =SUM(C5:C8) -> 20412128.04 | D9: =C9/B9 -> 0.3543417089
A10: Monto total del presupuesto anual liquidado (ejercicio fiscal 2016)
A11: Tipo | B11: Ingresos | C11: Gastos | D11: Financiamiento | E11: Resultados operativos (% de gestión cumplida) | F11: Link para descargar el presupuesto anual liquidado
A12: Corriente | B12: 8659869.57 | C12: 7239173.35 | D12: Fondos Fiscales | E12: =C12/B12 -> 0.8359448478 | F12: presupuesto anual liquidado 2016
B13: 45533178 | C13: 45359549.56 | D13: Preasignaciónes | E13: =C13/B13 -> 0.9961867709
A14: Inversión | B14: 6249304.71 | C14: 5090753.26 | D14: Fondos Fiscales | E14: =C14/B14 -> 0.8146111442
B15: 0 | C15: 0 | D15: Crédito Interno / Externo | E15: 0
A16: Total | B16: =SUM(B12:B15) -> 60442352.28 | C16: =SUM(C12:C15) -> 57689476.17 | D16: =C16/B16 -> 0.9544545173
A17: Destinatario de entrega de recursos públicos | F17: Link para descargar el listado de destinatarios de recursos públicos
F18: Destinatarios recursos públicos mensual
A20: FECHA ACTUALIZACIÓN DE LA INFORMACIÓN: | E20: DD/MM/AAAA (08/05/2017)
A21: PERIODICIDAD DE ACTUALIZACIÓN DE LA INFORMACIÓN: | E21: MAYO.2017
A22: UNIDAD POSEEDORA DE LA INFORMACIÓN - LITERAL g): | E22: DIRECCIÓN FINANIERA
A23: RESPONSABLE DE LA UNIDAD POSEEDORA DE LA INFORMACIÓN DEL LITERAL g): | E23: ING. SANDRA REYES ALAVA
A24: CORREO ELECTRÓNICO DEL O LA RESPONSABLE DE LA UNIDAD POSEEDORA DE LA INFORMACIÓN: | E24: sandra.reyes@uleam.edu.ec
A25: NÚMERO TELEFÓNICO DEL O LA RESPONSABLE DE LA UNIDAD POSEEDORA DE LA INFORMACIÓN: | E25: (02) 622-744-EXTENSIÓN-252

Sheet 06-17
A2: g) Información total sobre el presupuesto anual que administra la institución, especificando ingresos, gastos, financiamiento y resultados operativos de conformidad con los clasificadores presupuestales, así como liquidación del presupuesto, especificando destinatarios de entrega de recursos públicos
A3: Monto total del presupuesto anual 2017
A4: Tipo | B4: Ingresos | C4: Gastos | D4: Financiamiento | E4: Resultados operativos (% de gestión cumplida) | F4: Link para descargar la cédula presupuestaria mensual a nivel de tipo de gasto
A5: Corriente | B5: 8819525 | C5: 2305562.28 | D5: Fondos Fiscales | E5: =C5/B5 -> 0.2614156976 | F5: JUNIO -2017
B6: 45533178 | C6: 22202392.98 | D6: Preasignaciónes | E6: =C6/B6 -> 0.4876091227
A7: Inversión | B7: 3253069.98 | C7: 657567.72 | D7: Fondos Fiscales | E7: =C7/B7 -> 0.2021375882
B8: 0 | C8: 0 | D8: Crédito Interno / Externo | E8: 0
A9: Total | B9: =SUM(B5:B8) -> 57605772.98 | C9: =SUM(C5:C8) -> 25165522.98 | D9: =C9/B9 -> 0.4368576564
A10: Monto total del presupuesto anual liquidado (ejercicio fiscal 2016)
A11: Tipo | B11: Ingresos | C11: Gastos | D11: Financiamiento | E11: Resultados operativos (% de gestión cumplida) | F11: Link para descargar el presupuesto anual liquidado
A12: Corriente | B12: 8659869.57 | C12: 7239173.35 | D12: Fondos Fiscales | E12: =C12/B12 -> 0.8359448478 | F12: presupuesto anual liquidado 2016
B13: 45533178 | C13: 45359549.56 | D13: Preasignaciónes | E13: =C13/B13 -> 0.9961867709
A14: Inversión | B14: 6249304.71 | C14: 5090753.26 | D14: Fondos Fiscales | E14: =C14/B14 -> 0.8146111442
B15: 0 | C15: 0 | D15: Crédito Interno / Externo | E15: 0
A16: Total | B16: =SUM(B12:B15) -> 60442352.28 | C16: =SUM(C12:C15) -> 57689476.17 | D16: =C16/B16 -> 0.9544545173
A17: Destinatario de entrega de recursos públicos | F17: Link para descargar el listado de destinatarios de recursos públicos
F18: Destinatarios recursos públicos mensual
A20: FECHA ACTUALIZACIÓN DE LA INFORMACIÓN: | E20: DD/MM/AAAA (04/07/2017)
A21: PERIODICIDAD DE ACTUALIZACIÓN DE LA INFORMACIÓN: | E21: JUNIO.2017
A22: UNIDAD POSEEDORA DE LA INFORMACIÓN - LITERAL g): | E22: DIRECCIÓN FINANIERA
A23: RESPONSABLE DE LA UNIDAD POSEEDORA DE LA INFORMACIÓN DEL LITERAL g): | E23: EC. ZAIDA HORMAZA MUÑOZ
A24: CORREO ELECTRÓNICO DEL O LA RESPONSABLE DE LA UNIDAD POSEEDORA DE LA INFORMACIÓN: | E24: zaida.hormaza@uleam.edu.ec
A25: NÚMERO TELEFÓNICO DEL O LA RESPONSABLE DE LA UNIDAD POSEEDORA DE LA INFORMACIÓN: | E25: (02) 622-744-EXTENSIÓN-252

Sheet 07-17
A2: g) Información total sobre el presupuesto anual que administra la institución, especificando ingresos, gastos, financiamiento y resultados operativos de conformidad con los clasificadores presupuestales, así como liquidación del presupuesto, especificando destinatarios de entrega de recursos públicos
A3: Monto total del presupuesto anual 2017
A4: Tipo | B4: Ingresos | C4: Gastos | D4: Financiamiento | E4: Resultados operativos (% de gestión cumplida) | F4: Link para descargar la cédula presupuestaria mensual a nivel de tipo de gasto
A5: Corriente | B5: 8819525 | C5: 3021707.61 | D5: Fondos Fiscales | E5: =C5/B5 -> 0.3426156862 | F5: JULIO -2017
B6: 45533178 | C6: 25637678.12 | D6: Preasignaciónes | E6: =C6/B6 -> 0.563054881
A7: Inversión | B7: 3253069.98 | C7: 1272391.76 | D7: Fondos Fiscales | E7: =C7/B7 -> 0.3911356865
B8: 0 | C8: 0 | D8: Crédito Interno / Externo | E8: 0
A9: Total | B9: =SUM(B5:B8) -> 57605772.98 | C9: =SUM(C5:C8) -> 29931777.49 | D9: =C9/B9 -> 0.519596838
A10: Monto total del presupuesto anual liquidado (ejercicio fiscal 2016)
A11: Tipo | B11: Ingresos | C11: Gastos | D11: Financiamiento | E11: Resultados operativos (% de gestión cumplida) | F11: Link para descargar el presupuesto anual liquidado
A12: Corriente | B12: 8659869.57 | C12: 7239173.35 | D12: Fondos Fiscales | E12: =C12/B12 -> 0.8359448478 | F12: presupuesto anual liquidado 2016
B13: 45533178 | C13: 45359549.56 | D13: Preasignaciónes | E13: =C13/B13 -> 0.9961867709
A14: Inversión | B14: 6249304.71 | C14: 5090753.26 | D14: Fondos Fiscales | E14: =C14/B14 -> 0.8146111442
B15: 0 | C15: 0 | D15: Crédito Interno / Externo | E15: 0
A16: Total | B16: =SUM(B12:B15) -> 60442352.28 | C16: =SUM(C12:C15) -> 57689476.17 | D16: =C16/B16 -> 0.9544545173
A17: Destinatario de entrega de recursos públicos | F17: Link para descargar el listado de destinatarios de recursos públicos
F18: Destinatarios recursos públicos mensual
A20: FECHA ACTUALIZACIÓN DE LA INFORMACIÓN: | E20: DD/MM/AAAA (07/08/2017)
A21: PERIODICIDAD DE ACTUALIZACIÓN DE LA INFORMACIÓN: | E21: JULIO.2017
A22: UNIDAD POSEEDORA DE LA INFORMACIÓN - LITERAL g): | E22: DIRECCIÓN FINANIERA
A23: RESPONSABLE DE LA UNIDAD POSEEDORA DE LA INFORMACIÓN DEL LITERAL g): | E23: EC. ZAIDA HORMAZA MUÑOZ
A24: CORREO ELECTRÓNICO DEL O LA RESPONSABLE DE LA UNIDAD POSEEDORA DE LA INFORMACIÓN: | E24: zaida.hormaza@uleam.edu.ec
A25: NÚMERO TELEFÓNICO DEL O LA RESPONSABLE DE LA UNIDAD POSEEDORA DE LA INFORMACIÓN: | E25: (02) 622-744-EXTENSIÓN-252

Sheet 08-17
A2: g) Información total sobre el presupuesto anual que administra la institución, especificando ingresos, gastos, financiamiento y resultados operativos de conformidad con los clasificadores presupuestales, así como liquidación del presupuesto, especificando destinatarios de entrega de recursos públicos
A3: Monto total del presupuesto anual 2017
A4: Tipo | B4: Ingresos | C4: Gastos | D4: Financiamiento | E4: Resultados operativos (% de gestión cumplida) | F4: Link para descargar la cédula presupuestaria mensual a nivel de tipo de gasto
A5: Corriente | B5: 8819525 | C5: 3816269.68 | D5: Fondos Fiscales | E5: =C5/B5 -> 0.4327069406 | F5: AGOSTO - 2017
B6: 45533178 | C6: 29243196.96 | D6: Preasignaciónes | E6: =C6/B6 -> 0.6422393131
A7: Inversión | B7: 3253069.98 | C7: 1285959.91 | D7: Fondos Fiscales | E7: =C7/B7 -> 0.3953065621
B8: 0 | C8: 0 | D8: Crédito Interno / Externo | E8: 0
A9: Total | B9: =SUM(B5:B8) -> 57605772.98 | C9: =SUM(C5:C8) -> 34345426.55 | D9: =C9/B9 -> 0.5962150106
A10: Monto total del presupuesto anual liquidado (ejercicio fiscal 2016)
A11: Tipo | B11: Ingresos | C11: Gastos | D11: Financiamiento | E11: Resultados operativos (% de gestión cumplida) | F11: Link para descargar el presupuesto anual liquidado
A12: Corriente | B12: 8659869.57 | C12: 7239173.35 | D12: Fondos Fiscales | E12: =C12/B12 -> 0.8359448478 | F12: presupuesto anual liquidado 2016
B13: 45533178 | C13: 45359549.56 | D13: Preasignaciónes | E13: =C13/B13 -> 0.9961867709
A14: Inversión | B14: 6249304.71 | C14: 5090753.26 | D14: Fondos Fiscales | E14: =C14/B14 -> 0.8146111442
B15: 0 | C15: 0 | D15: Crédito Interno / Externo | E15: 0
A16: Total | B16: =SUM(B12:B15) -> 60442352.28 | C16: =SUM(C12:C15) -> 57689476.17 | D16: =C16/B16 -> 0.9544545173
A17: Destinatario de entrega de recursos públicos | F17: Link para descargar el listado de destinatarios de recursos públicos
F18: Destinatarios recursos públicos mensual
A20: FECHA ACTUALIZACIÓN DE LA INFORMACIÓN: | E20: DD/MM/AAAA (07/08/2017)
A21: PERIODICIDAD DE ACTUALIZACIÓN DE LA INFORMACIÓN: | E21: AGOSTO.2017
A22: UNIDAD POSEEDORA DE LA INFORMACIÓN - LITERAL g): | E22: DIRECCIÓN FINANIERA
A23: RESPONSABLE DE LA UNIDAD POSEEDORA DE LA INFORMACIÓN DEL LITERAL g): | E23: EC. ZAIDA HORMAZA MUÑOZ
A24: CORREO ELECTRÓNICO DEL O LA RESPONSABLE DE LA UNIDAD POSEEDORA DE LA INFORMACIÓN: | E24: zaida.hormaza@uleam.edu.ec
A25: NÚMERO TELEFÓNICO DEL O LA RESPONSABLE DE LA UNIDAD POSEEDORA DE LA INFORMACIÓN: | E25: (02) 622-744-EXTENSIÓN-252

Sheet 09-17
A2: g) Información total sobre el presupuesto anual que administra la institución, especificando ingresos, gastos, financiamiento y resultados operativos de conformidad con los clasificadores presupuestales, así como liquidación del presupuesto, especificando destinatarios de entrega de recursos públicos
A3: Monto total del presupuesto anual 2017
A4: Tipo | B4: Ingresos | C4: Gastos | D4: Financiamiento | E4: Resultados operativos (% de gestión cumplida) | F4: Link para descargar la cédula presupuestaria mensual a nivel de tipo de gasto
A5: Corriente | B5: 13716679.36 | C5: 4608118.11 | D5: Fondos Fiscales | E5: =C5/B5 -> 0.3359499766 | F5: SEPTIEMBRE - 2017
B6: 40677427.13 | C6: 32669046.62 | D6: Preasignaciónes | E6: =C6/B6 -> 0.8031247039
A7: Inversión | B7: 3253069.98 | C7: 1475017.65 | D7: Fondos Fiscales | E7: =C7/B7 -> 0.4534232768
B8: 0 | C8: 0 | D8: Crédito Interno / Externo | E8: 0
A9: Total | B9: =SUM(B5:B8) -> 57647176.47 | C9: =SUM(C5:C8) -> 38752182.38 | D9: =C9/B9 -> 0.6722303633
A10: Monto total del presupuesto anual liquidado (ejercicio fiscal 2016)
A11: Tipo | B11: Ingresos | C11: Gastos | D11: Financiamiento | E11: Resultados operativos (% de gestión cumplida) | F11: Link para descargar el presupuesto anual liquidado
A12: Corriente | B12: 8659869.57 | C12: 7239173.35 | D12: Fondos Fiscales | E12: =C12/B12 -> 0.8359448478 | F12: presupuesto anual liquidado 2016
B13: 45533178 | C13: 45359549.56 | D13: Preasignaciónes | E13: =C13/B13 -> 0.9961867709
A14: Inversión | B14: 6249304.71 | C14: 5090753.26 | D14: Fondos Fiscales | E14: =C14/B14 -> 0.8146111442
B15: 0 | C15: 0 | D15: Crédito Interno / Externo | E15: 0
A16: Total | B16: =SUM(B12:B15) -> 60442352.28 | C16: =SUM(C12:C15) -> 57689476.17 | D16: =C16/B16 -> 0.9544545173
A17: Destinatario de entrega de recursos públicos | F17: Link para descargar el listado de destinatarios de recursos públicos
F18: Destinatarios recursos públicos mensual
A20: FECHA ACTUALIZACIÓN DE LA INFORMACIÓN: | E20: DD/MM/AAAA (30/09/2017)
A21: PERIODICIDAD DE ACTUALIZACIÓN DE LA INFORMACIÓN: | E21: SEPTIEMBRE.2017
A22: UNIDAD POSEEDORA DE LA INFORMACIÓN - LITERAL g): | E22: DIRECCIÓN FINANIERA
A23: RESPONSABLE DE LA UNIDAD POSEEDORA DE LA INFORMACIÓN DEL LITERAL g): | E23: EC. ZAIDA HORMAZA MUÑOZ
A24: CORREO ELECTRÓNICO DEL O LA RESPONSABLE DE LA UNIDAD POSEEDORA DE LA INFORMACIÓN: | E24: zaida.hormaza@uleam.edu.ec
A25: NÚMERO TELEFÓNICO DEL O LA RESPONSABLE DE LA UNIDAD POSEEDORA DE LA INFORMACIÓN: | E25: (02) 622-744-EXTENSIÓN-252

Sheet 10-17
A2: g) Información total sobre el presupuesto anual que administra la institución, especificando ingresos, gastos, financiamiento y resultados operativos de conformidad con los clasificadores presupuestales, así como liquidación del presupuesto, especificando destinatarios de entrega de recursos públicos
A3: Monto total del presupuesto anual 2017
A4: Tipo | B4: Ingresos | C4: Gastos | D4: Financiamiento | E4: Resultados operativos (% de gestión cumplida) | F4: Link para descargar la cédula presupuestaria mensual a nivel de tipo de gasto
A5: Corriente | B5: 13716679.36 | C5: 5323956.05 | D5: Fondos Fiscales | E5: =C5/B5 -> 0.3881373844 | F5: OCTUBRE - 2017
B6: 40677427.13 | C6: 36086964.4 | D6: Preasignaciónes | E6: =C6/B6 -> 0.8871496293
A7: Inversión | B7: 3317055.95 | C7: 1837696.88 | D7: Fondos Fiscales | E7: =C7/B7 -> 0.5540144356
B8: 0 | C8: 0 | D8: Crédito Interno / Externo | E8: 0
A9: Total | B9: =SUM(B5:B8) -> 57711162.44 | C9: =SUM(C5:C8) -> 43248617.33 | D9: =C9/B9 -> 0.7493977855
A10: Monto total del presupuesto anual liquidado (ejercicio fiscal 2016)
A11: Tipo | B11: Ingresos | C11: Gastos | D11: Financiamiento | E11: Resultados operativos (% de gestión cumplida) | F11: Link para descargar el presupuesto anual liquidado
A12: Corriente | B12: 13716679.36 | C12: 5323956.05 | D12: Fondos Fiscales | E12: =C12/B12 -> 0.3881373844 | F12: presupuesto anual liquidado 2016
B13: 40677427.13 | C13: 36086964.4 | D13: Preasignaciónes | E13: =C13/B13 -> 0.8871496293
A14: Inversión | B14: 3317055.95 | C14: 2056017.57 | D14: Fondos Fiscales | E14: =C14/B14 -> 0.6198320441
B15: 0 | C15: 0 | D15: Crédito Interno / Externo | E15: 0
A16: Total | B16: =SUM(B12:B15) -> 57711162.44 | C16: =SUM(C12:C15) -> 43466938.02 | D16: =C16/B16 -> 0.7531807744
A17: Destinatario de entrega de recursos públicos | F17: Link para descargar el listado de destinatarios de recursos públicos
F18: Destinatarios recursos públicos mensual
A20: FECHA ACTUALIZACIÓN DE LA INFORMACIÓN: | E20: DD/MM/AAAA (31/10/2017)
A21: PERIODICIDAD DE ACTUALIZACIÓN DE LA INFORMACIÓN: | E21: OCTUBRE.2017
A22: UNIDAD POSEEDORA DE LA INFORMACIÓN - LITERAL g): | E22: DIRECCIÓN FINANIERA
A23: RESPONSABLE DE LA UNIDAD POSEEDORA DE LA INFORMACIÓN DEL LITERAL g): | E23: EC. ZAIDA HORMAZA MUÑOZ
A24: CORREO ELECTRÓNICO DEL O LA RESPONSABLE DE LA UNIDAD POSEEDORA DE LA INFORMACIÓN: | E24: zaida.hormaza@uleam.edu.ec
A25: NÚMERO TELEFÓNICO DEL O LA RESPONSABLE DE LA UNIDAD POSEEDORA DE LA INFORMACIÓN: | E25: (02) 622-744-EXTENSIÓN-252

Sheet 11-17
A2: g) Información total sobre el presupuesto anual que administra la institución, especificando ingresos, gastos, financiamiento y resultados operativos de conformidad con los clasificadores presupuestales, así como liquidación del presupuesto, especificando destinatarios de entrega de recursos públicos
A3: Monto total del presupuesto anual 2017
A4: Tipo | B4: Ingresos | C4: Gastos | D4: Financiamiento | E4: Resultados operativos (% de gestión cumplida) | F4: Link para descargar la cédula presupuestaria mensual a nivel de tipo de gasto | G4: INGRESOS | H4: GASTOS
A5: Corriente | B5: 13716679.36 | C5: 6242737.68 | D5: Fondos Fiscales | E5: =C5/B5 -> 0.4551201873 | F5: NOVIEMBRE - 2017 | G5: 9402372.37 | H5: 8298755.25
B6: 40677427.13 | C6: 39531065.58 | D6: Preasignaciónes | E6: =C6/B6 -> 0.9718182385 | G6: 3663514.25 | H6: 154250.73
A7: Inversión | B7: 3663514.25 | C7: 2056017.57 | D7: Fondos Fiscales | E7: =C7/B7 -> 0.5612145688 | G7: =G5+G6 -> 13065886.62 | H7: 1449487.87
B8: 0 | C8: 0 | D8: Crédito Interno / Externo | E8: 0 | H8: 452278.97
A9: Total | B9: =SUM(B5:B8) -> 58057620.74 | C9: =SUM(C5:C8) -> 47829820.83 | D9: =C9/B9 -> 0.8238336367 | H9: =H5-H6-H7-H8 -> 6242737.68
A10: Monto total del presupuesto anual liquidado (ejercicio fiscal 2016) | H10: =C5-H9 -> 0
A11: Tipo | B11: Ingresos | C11: Gastos | D11: Financiamiento | E11: Resultados operativos (% de gestión cumplida) | F11: Link para descargar el presupuesto anual liquidado | H11: 6258473.68
A12: Corriente | B12: 8659869.57 | C12: 7239173.35 | D12: Fondos Fiscales | E12: =C12/B12 -> 0.8359448478 | F12: presupuesto anual liquidado 2016 | H12: 39531065.58
B13: 45533178 | C13: 45359549.56 | D13: Preasignaciónes | E13: =C13/B13 -> 0.9961867709 | H13: =SUM(H6:H8) -> 2056017.57
A14: Inversión | B14: 6249304.71 | C14: 5090753.26 | D14: Fondos Fiscales | E14: =C14/B14 -> 0.8146111442 | H14: =H9+H12+H13 -> 47829820.83
B15: 0 | C15: 0 | D15: Crédito Interno / Externo | E15: 0
A16: Total | B16: =SUM(B12:B15) -> 60442352.28 | C16: =SUM(C12:C15) -> 57689476.17 | D16: =C16/B16 -> 0.9544545173
A17: Destinatario de entrega de recursos públicos | F17: Link para descargar el listado de destinatarios de recursos públicos
F18: Destinatarios recursos públicos mensual
A20: FECHA ACTUALIZACIÓN DE LA INFORMACIÓN: | E20: DD/MM/AAAA (31/11/2017)
A21: PERIODICIDAD DE ACTUALIZACIÓN DE LA INFORMACIÓN: | E21: NOVIEMBRE.2017
A22: UNIDAD POSEEDORA DE LA INFORMACIÓN - LITERAL g): | E22: DIRECCIÓN FINANIERA
A23: RESPONSABLE DE LA UNIDAD POSEEDORA DE LA INFORMACIÓN DEL LITERAL g): | E23: EC. ZAIDA HORMAZA MUÑOZ
A24: CORREO ELECTRÓNICO DEL O LA RESPONSABLE DE LA UNIDAD POSEEDORA DE LA INFORMACIÓN: | E24: zaida.hormaza@uleam.edu.ec
A25: NÚMERO TELEFÓNICO DEL O LA RESPONSABLE DE LA UNIDAD POSEEDORA DE LA INFORMACIÓN: | E25: (02) 622-744-EXTENSIÓN-252

Sheet 12-17
A2: g) Información total sobre el presupuesto anual que administra la institución, especificando ingresos, gastos, financiamiento y resultados operativos de conformidad con los clasificadores presupuestales, así como liquidación del presupuesto, especificando destinatarios de entrega de recursos públicos
A3: Monto total del presupuesto anual 2017
A4: Tipo | B4: Ingresos | C4: Gastos | D4: Financiamiento | E4: Resultados operativos (% de gestión cumplida) | F4: Link para descargar la cédula presupuestaria mensual a nivel de tipo de gasto
A5: Corriente | B5: 13716679.36 | C5: 10130867.62 | D5: Fondos Fiscales | E5: =C5/B5 -> 0.738580188 | F5: .DICIEMBRE - 2017
B6: 43812345.1 | C6: 43780162.71 | D6: Preasignaciónes | E6: =C6/B6 -> 0.9992654493
A7: Inversión | B7: 3663514.25 | C7: 2995653.82 | D7: Fondos Fiscales | E7: =C7/B7 -> 0.8176995135
B8: 0 | C8: 0 | D8: Crédito Interno / Externo | E8: 0
A9: Total | B9: =SUM(B5:B8) -> 61192538.71 | C9: =SUM(C5:C8) -> 56906684.15 | D9: =C9/B9 -> 0.9299611578
A10: Monto total del presupuesto anual liquidado (ejercicio fiscal 2016)
A11: Tipo | B11: Ingresos | C11: Gastos | D11: Financiamiento | E11: Resultados operativos (% de gestión cumplida) | F11: Link para descargar el presupuesto anual liquidado
A12: Corriente | B12: 8659869.57 | C12: 7239173.35 | D12: Fondos Fiscales | E12: =C12/B12 -> 0.8359448478 | F12: presupuesto anual liquidado 2016
B13: 45533178 | C13: 45359549.56 | D13: Preasignaciónes | E13: =C13/B13 -> 0.9961867709
A14: Inversión | B14: 6249304.71 | C14: 5090753.26 | D14: Fondos Fiscales | E14: =C14/B14 -> 0.8146111442
B15: 0 | C15: 0 | D15: Crédito Interno / Externo | E15: 0
A16: Total | B16: =SUM(B12:B15) -> 60442352.28 | C16: =SUM(C12:C15) -> 57689476.17 | D16: =C16/B16 -> 0.9544545173
A17: Destinatario de entrega de recursos públicos | F17: Link para descargar el listado de destinatarios de recursos públicos
F18: Destinatarios recursos públicos mensual
A20: FECHA ACTUALIZACIÓN DE LA INFORMACIÓN: | E20: DD/MM/AAAA (31/12/2017)
A21: PERIODICIDAD DE ACTUALIZACIÓN DE LA INFORMACIÓN: | E21: DICIEMBRE.2017
A22: UNIDAD POSEEDORA DE LA INFORMACIÓN - LITERAL g): | E22: DIRECCIÓN FINANIERA
A23: RESPONSABLE DE LA UNIDAD POSEEDORA DE LA INFORMACIÓN DEL LITERAL g): | E23: EC. ZAIDA HORMAZA MUÑOZ
A24: CORREO ELECTRÓNICO DEL O LA RESPONSABLE DE LA UNIDAD POSEEDORA DE LA INFORMACIÓN: | E24: zaida.hormaza@uleam.edu.ec
A25: NÚMERO TELEFÓNICO DEL O LA RESPONSABLE DE LA UNIDAD POSEEDORA DE LA INFORMACIÓN: | E25: (02) 622-744-EXTENSIÓN-252

Sheet 08-18
A8: g) Información total sobre el presupuesto anual que administra la institución, especificando ingresos, gastos, financiamiento y resultados operativos de conformidad con los clasificadores presupuestales, así como liquidación del presupuesto, especificando destinatarios de entrega de recursos públicos
A9: Monto total del presupuesto anual 2018
A10: Tipo | B10: Ingresos | C10: Gastos | D10: Financiamiento | E10: Resultados operativos (% de gestión cumplida) | F10: Link para descargar la cédula presupuestaria mensual a nivel de tipo de gasto
A11: Corriente | B11: 13344009.36 | C11: 5068688.63 | D11: Fondos Fiscales | E11: =C11/B11 -> 0.3798475026 | F11: CÉDULAS PRESUPUESTARIAS DE GASTOS DEL MES DE AGOSTO 2018
B12: 45309728 | C12: 28382280.53 | D12: Preasignaciónes | E12: =C12/B12 -> 0.6264058908
A13: Inversión | B13: 3042622.05 | C13: 1884386 | D13: Fondos Fiscales | E13: =C13/B13 -> 0.6193296338
B14: 0 | C14: 0 | D14: Crédito Interno / Externo | E14: 0
A15: Total | B15: =SUM(B11:B14) -> 61696359.41 | C15: =SUM(C11:C14) -> 35335355.16 | D15: =C15/B15 -> 0.5727299876
A16: Monto total del presupuesto anual liquidado (ejercicio fiscal 2016)
A17: Tipo | B17: Ingresos | C17: Gastos | D17: Financiamiento | E17: Resultados operativos (% de gestión cumplida) | F17: Link para descargar el presupuesto anual liquidado
A18: Corriente | B18: 13716679.36 | C18: 10130867.62 | D18: Fondos Fiscales | E18: =C18/B18 -> 0.738580188 | F18: presupuesto anual liquidado 2017
B19: 43812345.1 | C19: 43780162.71 | D19: Preasignaciónes | E19: =C19/B19 -> 0.9992654493
A20: Inversión | B20: 3663514.25 | C20: 2995653.82 | D20: Fondos Fiscales | E20: =C20/B20 -> 0.8176995135
B21: 0 | C21: 0 | D21: Crédito Interno / Externo | E21: 0
A22: Total | B22: =SUM(B18:B21) -> 61192538.71 | C22: =SUM(C18:C21) -> 56906684.15 | D22: =C22/B22 -> 0.9299611578
A23: Destinatario de entrega de recursos públicos | F23: Link para descargar el listado de destinatarios de recursos públicos
F24: Destinatarios recursos públicos mensual
A26: FECHA ACTUALIZACIÓN DE LA INFORMACIÓN: | E26: 2018-08-31
A27: PERIODICIDAD DE ACTUALIZACIÓN DE LA INFORMACIÓN: | E27: MENSUAL
A28: UNIDAD POSEEDORA DE LA INFORMACIÓN - LITERAL g): | E28: DIRECCIÓN FINANIERA
A29: RESPONSABLE DE LA UNIDAD POSEEDORA DE LA INFORMACIÓN DEL LITERAL g): | E29: EC. ZAIDA HORMAZA MUÑOZ
A30: CORREO ELECTRÓNICO DEL O LA RESPONSABLE DE LA UNIDAD POSEEDORA DE LA INFORMACIÓN: | E30: zaida.hormaza@uleam.edu.ec
A31: NÚMERO TELEFÓNICO DEL O LA RESPONSABLE DE LA UNIDAD POSEEDORA DE LA INFORMACIÓN: | E31: (02) 622-744-EXTENSIÓN-252
B33: UNIVERSIDAD LAICA ELOY ALFARO DE MANABI | E33: Literal g(Presupuesto de la Institucion( 1)

Sheet 09-18
A9: g) Información total sobre el presupuesto anual que administra la institución, especificando ingresos, gastos, financiamiento y resultados operativos de conformidad con los clasificadores presupuestales, así como liquidación del presupuesto, especificando destinatarios de entrega de recursos públicos
A10: Monto total del presupuesto anual 2018
A11: Tipo | B11: Ingresos | C11: Gastos | D11: Financiamiento | E11: Resultados operativos (% de gestión cumplida) | F11: Link para descargar la cédula presupuestaria mensual a nivel de tipo de gasto
A12: Corriente | B12: 13344009.36 | C12: 6194133.55 | D12: Fondos Fiscales | E12: =C12/B12 -> 0.4641883397 | F12: CÉDULA PRESUPUESTARIA DE GASTOS SEPTIEMBRE 2018
B13: 45309728 | C13: 31893397.89 | D13: Preasignaciónes | E13: =C13/B13 -> 0.7038973593
A14: Inversión | B14: 3042622.05 | C14: 2215164.25 | D14: Fondos Fiscales | E14: =C14/B14 -> 0.7280445003
B15: 0 | C15: 0 | D15: Crédito Interno / Externo | E15: 0
A16: Total | B16: =SUM(B12:B15) -> 61696359.41 | C16: =SUM(C12:C15) -> 40302695.69 | D16: =C16/B16 -> 0.6532426885
A17: Monto total del presupuesto anual liquidado (ejercicio fiscal 2016)
A18: Tipo | B18: Ingresos | C18: Gastos | D18: Financiamiento | E18: Resultados operativos (% de gestión cumplida) | F18: Link para descargar el presupuesto anual liquidado
A19: Corriente | B19: 13716679.36 | C19: 10130867.62 | D19: Fondos Fiscales | E19: =C19/B19 -> 0.738580188 | F19: presupuesto anual liquidado 2017
B20: 43812345.1 | C20: 43780162.71 | D20: Preasignaciónes | E20: =C20/B20 -> 0.9992654493
A21: Inversión | B21: 3663514.25 | C21: 2995653.82 | D21: Fondos Fiscales | E21: =C21/B21 -> 0.8176995135
B22: 0 | C22: 0 | D22: Crédito Interno / Externo | E22: 0
A23: Total | B23: =SUM(B19:B22) -> 61192538.71 | C23: =SUM(C19:C22) -> 56906684.15 | D23: =C23/B23 -> 0.9299611578
A24: Destinatario de entrega de recursos públicos | F24: Link para descargar el listado de destinatarios de recursos públicos
F25: Destinatarios recursos públicos mensual
A27: FECHA ACTUALIZACIÓN DE LA INFORMACIÓN: | E27: 2018-09-30
A28: PERIODICIDAD DE ACTUALIZACIÓN DE LA INFORMACIÓN: | E28: MENSUAL
A29: UNIDAD POSEEDORA DE LA INFORMACIÓN - LITERAL g): | E29: DIRECCIÓN FINANIERA
A30: RESPONSABLE DE LA UNIDAD POSEEDORA DE LA INFORMACIÓN DEL LITERAL g): | E30: EC. ZAIDA HORMAZA MUÑOZ
A31: CORREO ELECTRÓNICO DEL O LA RESPONSABLE DE LA UNIDAD POSEEDORA DE LA INFORMACIÓN: | E31: zaida.hormaza@uleam.edu.ec
A32: NÚMERO TELEFÓNICO DEL O LA RESPONSABLE DE LA UNIDAD POSEEDORA DE LA INFORMACIÓN: | E32: (02) 622-744-EXTENSIÓN-252
B34: UNIVERSIDAD LAICA ELOY ALFARO DE MANABI | E34: Literal g(Presupuesto de la Institución ( 1)
